bitfinex-derivatives/quotes_ETHF0:USTF0_20251013
["timestamp","ask_amount","ask_price","bid_price","bid_amount"]
[1760316499831,3.88657214,4125.9,4125.8,0.43588]
[1760316500031,3.09237214,4125.9,4125.6,0.4359]
[1760316500428,3.09237214,4125.9,4125.5,3.64371]
[1760316500630,0.7942,4125.8,4125.5,3.64371]
[1760316500834,3.09237214,4125.9,4125.5,3.64371]
[1760316501033,0.7942,4125.9,4125.5,3.64371]
[1760316501231,4.00285991,4125.9,4125.5,3.2078]
[1760316501439,0.7942,4125.8,4125.7,0.43589]
[1760316501639,0.7727,4126.3,4126.2,0.43584]
[1760316502035,0.7727,4126.9,4126.5,0.4358]
[1760316502235,3.96516,4127.0,4126.5,0.4358]
[1760316502440,0.7727,4126.6,4126.5,0.4358]
[1760316503147,0.7727,4126.6,4126.1,3.2078]
[1760316503148,0.7727,4126.2,4126.1,3.2078]
[1760316503937,0.7727,4125.7,4125.3,3.2078]
[1760316504143,0.3116,4126.0,4125.3,3.2078]
[1760316504144,0.7727,4125.4,4125.3,3.2078]
[1760316505439,1.0843,4126.0,4125.3,3.2078]
[1760316505749,0.7727,4125.9,4125.7,0.43589]
[1760316505943,0.7727,4125.9,4125.8,0.43588]
[1760316506143,3.2078,4126.5,4126.4,0.43582]
[1760316506347,3.9805,4126.5,4126.2,0.43584]
[1760316506546,3.2078,4126.5,4126.3,0.43582]
[1760316506745,0.7727,4126.4,4126.3,0.43582]
[1760316507049,0.00284686,4126.8,4126.7,1.16809]
[1760316507250,0.7727,4127.9,4127.7,0.43567]
[1760316507442,0.7727,4127.9,4127.2,0.7323]
[1760316507443,41.54725,4128.0,4127.4,3.2078]
[1760316507651,3.16542809,4127.8,4127.4,3.9401]
[1760316507846,0.7727,4128.1,4127.5,0.7323]
[1760316508040,0.7727,4128.1,4127.9,0.43565]
[1760316508241,0.00247387,4128.1,4128.0,0.43565]
[1760316508553,0.7727,4128.0,4127.9,0.00226644]
[1760316509045,0.00247387,4128.1,4128.0,1.16795]
[1760316509844,0.00247387,4128.1,4127.9,3.21006644]
[1760316509845,0.7727,4128.0,4127.9,3.21006644]
[1760316510047,1.51995,4128.0,4127.9,0.00226644]
[1760316510245,4.62911726,4128.0,4127.9,0.00226644]
[1760316510744,0.3116,4127.5,4126.6,3.2078]
[1760316510952,0.7727,4126.9,4126.6,3.2078]
[1760316511151,0.7727,4126.2,4126.1,3.2078]
[1760316511350,0.43588,4125.8,4125.6,3.2078]
[1760316511546,0.7727,4125.7,4125.6,3.2078]
[1760316511851,0.7727,4125.4,4125.0,3.2078]
[1760316512246,0.7727,4125.2,4125.0,3.2078]
[1760316512552,0.7727,4125.1,4125.0,3.2078]
[1760316513749,0.7727,4125.1,4124.5,3.2078]
[1760316513948,0.77533568,4125.2,4124.5,3.2078]
[1760316514147,0.77533568,4125.2,4124.7,0.43599]
[1760316514343,0.00263568,4125.2,4124.8,0.43598]
[1760316514542,0.00263568,4125.2,4125.1,0.7323]
[1760316514746,0.7727,4125.1,4125.0,3.2078]
[1760316514950,0.00263568,4125.2,4125.1,0.43596]
[1760316515150,0.77533568,4125.2,4125.1,0.43596]
[1760316515351,0.77533568,4125.2,4125.0,3.2078]
[1760316515551,0.7727,4125.1,4125.0,3.64376]
[1760316515850,0.3116,4125.0,4124.5,3.2078]
[1760316516052,0.7727,4124.9,4124.7,0.43599]
[1760316517252,0.77533568,4125.2,4125.0,0.43596]
[1760316517850,0.7727,4125.1,4125.0,0.43596]
[1760316518050,0.7727,4125.1,4125.0,3.2078]
[1760316518848,0.00263568,4125.2,4125.0,3.64376]
[1760316519047,0.7727,4125.1,4125.0,3.2078]
[1760316522155,0.436,4124.7,4124.5,3.2078]
[1760316522351,0.7727,4124.6,4124.5,3.2078]
[1760316522654,3.85386993,4124.6,4124.5,3.2078]
[1760316522849,44.65386993,4124.6,4124.5,3.2078]
[1760316524052,45.29695106,4124.6,4124.5,3.2078]
[1760316524251,44.65386993,4124.6,4124.5,3.2078]
[1760316525654,44.65386993,4124.6,4124.0,10.0]
[1760316525858,0.7912,4124.1,4124.0,10.0]
[1760316526248,3.93190394,4124.1,4124.0,10.0]
[1760316530058,0.7912,4124.1,4124.0,13.2078]
[1760316531259,3.94542073,4124.1,4124.0,10.0]
[1760316532861,0.723,4124.7,4124.0,14.29797]
[1760316533057,0.723,4124.7,4124.0,13.2078]
[1760316533259,0.723,4124.3,4124.2,0.43605]
[1760316533760,0.3191,4124.5,4124.0,13.2078]
[1760316533761,0.3191,4124.5,4124.4,0.43603]
[1760316533967,3.08226977,4124.3,4124.0,13.2078]
[1760316534265,3.08226977,4124.4,4124.3,0.43604]
[1760316534456,0.723,4124.4,4124.1,0.43606]
[1760316534655,3.11250687,4124.4,4124.1,0.43606]
[1760316534852,3.54853687,4124.4,4124.0,13.2078]
[1760316535056,0.723,4124.3,4124.1,0.43606]
[1760316535266,0.43605,4124.3,4124.0,13.2078]
[1760316535574,0.723,4124.1,4124.0,13.2078]
[1760316536064,0.3116,4125.0,4124.0,13.2078]
[1760316536065,0.3116,4126.0,4125.0,0.43596]
[1760316536266,0.723,4126.4,4125.5,0.7347]
[1760316536558,0.723,4126.4,4126.3,0.43583]
[1760316536765,3.9308,4126.6,4126.3,0.43583]
[1760316536963,0.723,4126.4,4126.1,3.2078]
[1760316537165,0.7249098,4126.4,4126.1,3.64584589]
[1760316537464,3.86988411,4126.3,4126.1,0.00220589]
[1760316537767,4.30572411,4126.3,4126.1,0.00220589]
[1760316539263,0.43592,4125.5,4125.0,3.2078]
[1760316539454,0.43592,4125.5,4125.1,0.43595]
[1760316539455,0.75502,4125.5,4125.1,0.43595]
[1760316539654,0.723,4125.3,4125.2,0.43593]
[1760316540064,0.723,4125.9,4125.8,0.43588]
[1760316540262,0.3191,4126.0,4125.8,0.00101021]
[1760316540562,0.723,4125.9,4125.8,0.00101021]
[1760316541173,1.15887,4125.9,4125.8,0.00101021]
[1760316541469,4.28515644,4125.9,4125.8,0.00101021]
[1760316541664,3.84928644,4125.9,4125.8,0.00101021]
[1760316542664,3.84928644,4125.9,4124.8,5.36951743]
[1760316542665,0.723,4125.6,4124.8,5.36951743]
[1760316542970,0.723,4124.9,4124.8,3.2078]
[1760316543359,3.1629709,4124.9,4124.3,5.36951743]
[1760316543566,0.723,4124.4,4124.3,3.2078]
[1760316543964,0.723,4124.4,4124.0,10.0]
[1760316544268,0.75513,4124.5,4124.0,10.43607]
[1760316544574,0.75513,4124.5,4124.2,0.43604]
[1760316544575,0.3191,4124.5,4124.2,0.43604]
[1760316544865,0.3191,4124.5,4124.0,10.0]
[1760316544866,0.723,4125.2,4125.1,0.43596]
[1760316545065,1.0421,4125.5,4125.4,0.43592]
[1760316545373,3.64368,4125.9,4125.7,0.43588]
[1760316545374,0.723,4125.8,4125.7,0.43588]
[1760316545575,0.0019098,4126.4,4125.8,0.7347]
[1760316545866,3.93241172,4126.3,4125.9,0.43586]
[1760316546070,3.93241172,4126.3,4125.4,3.2078]
[1760316546071,0.3191,4125.5,4125.4,3.2078]
[1760316546369,0.723,4125.5,4125.4,3.64372]
[1760316546968,0.723,4125.5,4125.4,0.43592]
[1760316547472,0.723,4124.9,4124.8,3.2078]
[1760316548974,0.723,4124.4,4124.1,0.43606]
[1760316549169,0.3191,4124.5,4124.1,0.43606]
[1760316549366,0.3191,4124.5,4124.2,0.43604]
[1760316549564,0.723,4124.8,4124.1,0.7347]
[1760316549876,0.723,4124.8,4124.7,0.436]
[1760316550479,0.723,4124.4,4124.0,13.2078]
[1760316550773,1.0421,4124.5,4124.4,0.43603]
[1760316551370,0.3191,4124.5,4124.2,0.43605]
[1760316551763,0.3191,4124.5,4124.3,0.43603]
[1760316551970,0.723,4124.4,4124.3,0.43603]
[1760316552169,0.723,4124.9,4124.8,0.43599]
[1760316552669,0.723,4124.9,4124.6,3.2078]
[1760316552670,0.723,4125.2,4125.1,0.43596]
[1760316552874,3.5269,4125.5,4125.4,0.43592]
[1760316552875,3.2078,4125.5,4125.4,0.43592]
[1760316553066,3.04615934,4125.5,4125.4,1.17062]
[1760316553275,3.04615934,4125.5,4124.9,1.08993]
[1760316553276,3.2078,4127.3,4125.6,0.7347]
[1760316553474,3.2078,4127.3,4126.8,0.7347]
[1760316553776,3.09150136,4127.1,4126.7,0.43578]
[1760316553971,3.09150136,4127.2,4126.4,3.2078]
[1760316554175,3.09150136,4127.0,4126.4,3.2078]
[1760316554375,0.32202417,4127.0,4126.4,3.2097098]
[1760316554673,3.10231976,4126.9,4126.4,3.2097098]
[1760316554868,3.10231976,4126.9,4126.6,0.43579]
[1760316555575,0.723,4126.8,4126.6,0.43579]
[1760316555773,3.10231976,4126.9,4126.6,0.43579]
[1760316555972,0.723,4126.9,4126.6,0.43579]
[1760316556168,0.723,4126.8,4126.7,0.43578]
[1760316556373,3.20936432,4126.9,4126.7,1.17048]
[1760316556573,0.72592417,4127.0,4126.8,0.43577]
[1760316556777,3.07895428,4126.9,4126.8,1.17047]
[1760316556969,0.00292417,4127.0,4126.8,1.17047]
[1760316557175,0.00292417,4127.0,4126.9,0.7347]
[1760316557376,0.00292417,4127.0,4126.8,0.43577]
[1760316557377,0.723,4126.9,4126.8,0.43577]
[1760316557577,0.43577,4126.9,4126.4,3.6455198]
[1760316557872,0.723,4126.7,4126.4,3.6455198]
[1760316558272,0.723,4126.7,4126.5,0.4358]
[1760316558472,0.723,4126.9,4126.7,0.7347]
[1760316558874,3.8721307,4126.9,4126.7,0.7347]
[1760316559072,0.723,4126.8,4126.7,0.7347]
[1760316559276,0.723,4126.8,4126.6,0.43579]
[1760316559670,0.75778417,4127.0,4126.6,0.43579]
[1760316559867,0.723,4126.8,4126.6,0.43579]
[1760316560072,0.723,4126.8,4126.7,0.43578]
[1760316560777,0.32202417,4127.0,4126.4,3.2097098]
[1760316561273,0.43578,4126.8,4126.4,0.0019098]
[1760316561475,1.0251,4126.5,4126.4,0.0019098]
[1760316561984,1.46096,4126.0,4125.4,3.2078]
[1760316562278,0.7166,4124.5,4124.4,3.2078]
[1760316562675,3.89552964,4124.5,4124.4,3.2078]
[1760316562973,3.17892964,4124.5,4124.4,3.2078]
[1760316563179,3.89552964,4124.5,4124.4,3.2078]
[1760316563380,0.7166,4124.5,4124.4,3.2078]
[1760316563679,0.7166,4124.5,4124.0,10.43607]
[1760316563680,0.43603,4124.4,4124.0,10.43607]
[1760316563876,0.7166,4124.3,4124.0,10.43607]
[1760316564078,3.11638278,4124.3,4124.1,0.7358]
[1760316564273,40.8,4124.8,4124.5,0.43601]
[1760316564474,3.2078,4125.6,4124.8,0.7358]
[1760316564675,0.43591,4125.5,4125.1,0.43595]
[1760316564875,3.19695963,4125.5,4125.4,0.7358]
[1760316565074,3.64365,4126.1,4125.5,0.43591]
[1760316565271,3.64365,4126.1,4126.0,0.43586]
[1760316565272,3.2078,4126.1,4126.0,0.43586]
[1760316565580,3.21123393,4126.4,4125.9,3.2078]
[1760316565781,0.7166,4126.2,4125.9,3.2078]
[1760316566086,3.21123393,4126.1,4125.6,0.4359]
[1760316566375,0.7166,4126.0,4125.7,1.17168]
[1760316566773,3.2231646,4125.9,4125.7,1.17168]
[1760316567382,3.2231646,4125.9,4125.7,0.7358]
[1760316567685,0.4359,4125.6,4125.1,0.43595]
[1760316568076,3.93503049,4125.5,4124.9,4.37957]
[1760316568476,3.09970573,4125.8,4125.0,0.43596]
[1760316568683,3.09970573,4125.4,4125.2,0.43594]
[1760316568878,0.7166,4125.4,4125.0,0.43596]
[1760316569080,0.43592,4125.5,4124.9,3.2078]
[1760316569081,3.09970573,4125.5,4124.9,3.2078]
[1760316569276,3.09970573,4125.3,4124.9,3.2078]
[1760316569477,3.60028511,4125.7,4125.3,1.17173]
[1760316569676,3.60028511,4125.7,4125.4,0.7358]
[1760316569982,3.16438511,4125.5,4125.4,0.7358]
[1760316570179,3.16438511,4125.6,4125.4,0.7358]
[1760316570377,0.43591,4125.6,4125.4,0.7358]
[1760316570581,0.43595,4125.2,4124.9,3.2078]
[1760316570777,1.15255,4125.2,4124.9,3.2078]
[1760316570977,0.7166,4125.1,4124.9,3.2078]
[1760316571179,4.27986573,4125.1,4124.9,3.2078]
[1760316571577,3.12730573,4125.1,4125.0,0.7358]
[1760316572083,0.43592,4125.5,4125.2,0.43594]
[1760316572378,0.43593,4125.4,4125.3,0.7358]
[1760316572578,3.17608414,4125.5,4125.4,0.7358]
[1760316572884,3.2078,4125.9,4125.8,0.7358]
[1760316573182,6.38388414,4125.9,4125.8,0.7358]
[1760316573377,3.17608414,4125.9,4125.8,0.7358]
[1760316573778,3.18444824,4126.0,4125.6,0.7358]
[1760316573981,0.4358,4126.6,4126.2,0.43584]
[1760316574183,3.18444824,4126.4,4126.3,0.7358]
[1760316574479,3.20275273,4126.5,4126.4,0.7358]
[1760316574687,0.00292417,4127.0,4126.9,0.43576]
[1760316574986,0.00292417,4127.0,4126.9,4.37936]
[1760316575586,3.2078,4128.5,4127.1,1.82515]
[1760316575778,3.2078,4128.5,4128.3,0.7358]
[1760316576086,3.2078,4129.1,4128.3,0.7358]
[1760316576593,3.21028515,4129.1,4128.5,0.3019]
[1760316576785,0.00248515,4129.1,4129.0,1.0377]
[1760316577081,0.7166,4128.9,4128.2,4.37923]
[1760316577277,3.0966638,4129.0,4128.3,0.43848998]
[1760316577474,3.09646329,4128.8,4128.4,0.7358]
[1760316577677,3.09646329,4128.9,4128.3,0.00287998]
[1760316577881,3.09646329,4128.9,4128.3,0.43849998]
[1760316578094,4.36242515,4129.1,4128.3,0.43849998]
[1760316578482,3.09243155,4128.8,4128.3,0.43849998]
[1760316578682,3.52798155,4129.0,4128.3,0.43849998]
[1760316578982,0.7166,4128.4,4128.3,0.00287998]
[1760316579382,3.82890342,4128.4,4128.3,0.00287998]
[1760316579784,3.11230342,4128.4,4128.3,0.73867998]
[1760316580180,3.54791342,4128.4,4128.3,0.73867998]
[1760316580384,0.43561,4128.4,4128.3,0.00287998]
[1760316580587,4.31977811,4128.4,4128.3,0.00287998]
[1760316581687,3.60317811,4128.4,4128.3,0.73867998]
[1760316582185,3.16756811,4128.4,4128.3,0.73867998]
[1760316582385,0.43802515,4129.1,4128.6,0.43558]
[1760316582593,0.43802515,4129.1,4128.9,0.43555]
[1760316582594,0.00248515,4129.1,4128.9,0.43555]
[1760316582784,0.00248515,4129.1,4129.0,0.7358]
[1760316582978,0.00248515,4129.1,4128.5,0.3019]
[1760316582979,0.4356,4128.5,4128.3,0.00287998]
[1760316583189,0.7166,4128.4,4128.3,0.00287998]
[1760316583487,3.85763973,4128.4,4128.3,0.00287998]
[1760316584185,3.14103973,4128.4,4128.3,0.00287998]
[1760316584390,3.14103973,4128.4,4128.3,0.73867998]
[1760316585091,3.14103973,4128.4,4128.3,0.00287998]
[1760316585388,7.06543973,4128.4,4128.3,0.00287998]
[1760316585883,7.06543973,4128.4,4128.3,0.73867998]
[1760316585884,47.58444973,4128.4,4128.3,0.73867998]
[1760316586284,6.78444973,4128.4,4128.3,0.73867998]
[1760316586488,6.78444973,4128.4,4128.3,0.00287998]
[1760316586686,7.50104973,4128.4,4128.3,0.00287998]
[1760316587287,6.78444973,4128.4,4128.3,0.00287998]
[1760316588790,0.43555,4129.0,4128.6,0.43558]
[1760316588989,0.43802515,4129.1,4128.9,0.7173]
[1760316589495,3.14744399,4129.0,4128.9,0.7173]
[1760316590594,3.14744399,4129.0,4128.5,3.5195]
[1760316590595,0.43559,4128.6,4128.5,0.7173]
[1760316590797,0.43557,4128.8,4128.4,0.7173]
[1760316591098,0.43558,4128.7,4128.6,0.7173]
[1760316591703,0.43802515,4129.1,4128.7,1.19707]
[1760316592003,3.11285763,4129.0,4128.7,0.43557]
[1760316592205,3.11285763,4129.0,4128.9,0.7615]
[1760316592402,0.00248515,4129.1,4129.0,1.50614]
[1760316593608,0.43544,4130.0,4129.6,0.43547]
[1760316593900,3.09153152,4129.9,4129.6,0.43547]
[1760316594295,0.43544,4130.0,4129.9,1.19695]
[1760316594296,3.09153152,4130.0,4129.9,1.19695]
[1760316594503,3.2078,4131.0,4130.6,0.7615]
[1760316594701,0.00251955,4131.0,4130.9,3.9693]
[1760316596006,0.00251955,4131.0,4130.9,3.2078]
[1760316596207,0.00251955,4131.0,4130.9,3.9693]
[1760316600205,3.2078,4132.4,4132.2,0.4352]
[1760316600405,3.2078,4132.9,4132.1,3.2078]
[1760316600606,3.2078,4132.9,4132.8,0.7615]
[1760316601209,3.21027027,4132.9,4132.8,0.76457338]
[1760316601408,0.00247027,4132.9,4132.8,0.76457338]
[1760316603199,3.78657076,4132.9,4132.8,0.00307338]
[1760316603904,3.08147076,4132.9,4132.8,0.76457338]
[1760316604104,0.00247027,4132.9,4132.8,1.19971338]
[1760316604310,0.00247027,4132.9,4132.8,4.40751338]
[1760316606706,3.2078,4133.6,4132.8,4.40751338]
[1760316606707,3.2078,4133.6,4133.5,1.0706]
[1760316606909,3.2078,4134.2,4134.1,0.7615]
[1760316607406,3.2078,4134.2,4134.0,0.3091]
[1760316607407,3.11881152,4134.6,4134.5,1.50556]
[1760316607608,3.64266,4135.5,4135.1,0.7615]
[1760316607812,3.21082834,4135.5,4135.1,0.7615]
[1760316608014,3.20298561,4135.4,4134.5,4.2784]
[1760316608214,0.4349,4135.2,4134.5,4.2784]
[1760316608413,3.20298561,4135.4,4134.5,0.7615]
[1760316608414,0.43494,4134.8,4134.5,0.7615]
[1760316608604,3.2078,4134.9,4134.8,0.43493]
[1760316608914,0.00302834,4135.5,4135.0,0.3091]
[1760316609117,0.00302834,4135.5,4135.1,0.7615]
[1760316609509,0.00302834,4135.5,4135.3,0.43487]
[1760316609710,0.00302834,4135.5,4135.4,0.7615]
[1760316611106,3.2078,4136.2,4136.1,1.1963]
[1760316611303,3.6425,4137.1,4136.5,0.43475]
[1760316611509,3.64249,4137.1,4136.5,1.19625]
[1760316611710,0.43471,4137.0,4136.6,0.7615]
[1760316612010,0.43471,4137.0,4136.0,0.3091]
[1760316612011,6.34644915,4137.1,4136.4,0.7615]
[1760316612215,6.34903041,4137.1,4136.5,0.43475]
[1760316612718,6.34903041,4137.1,4136.4,0.76363424]
[1760316612916,0.43474,4136.7,4136.5,0.7615]
[1760316613218,3.2078,4136.6,4136.5,0.7615]
[1760316614222,0.43475,4136.5,4136.4,0.00213424]
[1760316614423,1.13985,4136.5,4136.4,0.00213424]
[1760316614612,4.21799425,4136.5,4136.4,0.00213424]
[1760316615215,3.51289425,4136.5,4136.4,0.00213424]
[1760316615918,5.25396638,4137.6,4136.5,1.50535]
[1760316616113,3.21038126,4137.1,4136.5,1.50535]
[1760316616314,0.43472,4136.9,4136.5,0.74385]
[1760316616618,0.43473,4136.8,4136.6,0.7615]
[1760316617413,3.15780566,4136.7,4136.6,0.7615]
[1760316617613,0.43472,4136.9,4136.6,0.7615]
[1760316617807,3.07827953,4136.9,4136.4,0.00213424]
[1760316618009,3.9129,4136.6,4136.4,0.00213424]
[1760316618210,0.7051,4136.5,4136.4,0.00213424]
[1760316618411,3.51302953,4136.5,4136.4,0.76363424]
[1760316618911,40.8,4137.0,4136.5,0.3091]
[1760316619219,0.43473,4136.8,4136.6,0.7615]
[1760316619421,0.43473,4136.8,4136.5,0.3091]
[1760316619612,3.21038126,4137.1,4136.6,0.7615]
[1760316619814,0.00258126,4137.1,4137.0,1.5053]
[1760316620218,3.2078,4137.7,4137.5,0.74374]
[1760316620522,0.7051,4138.4,4137.5,0.74374]
[1760316620523,3.2078,4138.2,4137.6,0.7615]
[1760316620725,0.43453,4138.7,4138.3,0.7615]
[1760316621022,3.64232,4138.8,4138.4,0.7615]
[1760316621220,0.43453,4138.7,4138.3,0.43456]
[1760316621419,3.10196844,4138.7,4138.1,0.7615]
[1760316621714,3.10196844,4138.7,4138.0,0.3091]
[1760316621715,0.43459,4138.1,4137.6,0.7534]
[1760316621920,3.2078,4138.3,4137.7,0.7534]
[1760316622309,3.64237,4138.3,4137.9,0.4346]
[1760316622509,0.7266,4138.7,4137.9,0.4346]
[1760316622510,3.21056077,4138.8,4138.4,0.7534]
[1760316622717,0.00276077,4138.8,4138.7,0.7534]
[1760316623618,0.22,4139.3,4139.2,0.7534]
[1760316623823,0.22,4139.3,4139.2,3.9612]
[1760316624123,3.2078,4139.9,4139.3,0.7534]
[1760316624419,0.43433,4140.6,4140.0,1.0494]
[1760316624721,7.13856763,4140.5,4140.1,0.7534]
[1760316624915,0.43436,4140.2,4140.0,0.0017491]
[1760316625115,0.7266,4140.1,4140.0,0.0017491]
[1760316625324,0.00304182,4140.6,4140.5,1.0494]
[1760316625514,3.2078,4141.5,4141.3,0.43424]
[1760316625713,3.2078,4142.3,4142.0,0.296]
[1760316625912,0.43412,4142.5,4142.1,0.7534]
[1760316626114,3.61339163,4142.7,4142.1,0.7534]
[1760316626408,0.00213501,4142.7,4142.2,0.7534]
[1760316626611,0.00213501,4142.7,4142.0,0.296]
[1760316626612,0.00213501,4142.7,4142.6,0.7534]
[1760316627219,0.43624501,4142.7,4142.1,0.7534]
[1760316627418,0.00213501,4142.7,4142.1,0.7534]
[1760316627819,3.64181,4143.7,4142.6,0.7534]
[1760316628117,3.64181,4143.7,4143.0,0.296]
[1760316628322,0.43402,4143.5,4143.0,0.296]
[1760316628621,3.2078,4143.7,4143.0,0.296]
[1760316628818,3.20990491,4143.7,4143.1,0.7534]
[1760316629015,3.20990491,4143.7,4143.5,0.296]
[1760316629223,3.64390491,4143.7,4143.6,0.7534]
[1760316629721,0.43405,4143.2,4143.1,0.7534]
[1760316629917,6.36545918,4143.7,4143.1,0.7534]
[1760316629918,3.20990491,4143.7,4143.5,0.296]
[1760316630111,3.20990491,4143.7,4143.6,0.7534]
[1760316630620,0.43406,4143.1,4143.0,0.29817555]
[1760316630916,0.43403,4143.4,4143.0,0.29817555]
[1760316631120,6.37133007,4143.7,4143.0,0.29817555]
[1760316631520,6.37133007,4143.7,4143.0,0.00217555]
[1760316632119,0.43403,4143.4,4143.1,0.7534]
[1760316632722,7.45634007,4143.7,4143.1,0.7534]
[1760316633020,3.2078,4143.2,4143.1,0.7534]
[1760316633223,3.17943957,4143.6,4143.5,1.0494]
[1760316633420,3.20990491,4143.7,4143.6,0.7534]
[1760316633817,0.43404,4143.3,4143.1,0.7534]
[1760316634018,0.43406,4143.2,4143.0,0.00217555]
[1760316634218,3.2078,4143.1,4143.0,0.00217555]
[1760316634524,0.43405,4143.3,4143.0,0.29817555]
[1760316634822,3.2078,4143.1,4143.0,0.75557555]
[1760316635032,3.60777023,4143.2,4143.0,0.75557555]
[1760316635033,3.60777023,4143.2,4143.1,0.7534]
[1760316635326,0.43406,4143.2,4143.0,0.00217555]
[1760316635822,6.38420382,4143.1,4143.0,0.00217555]
[1760316636124,3.2078,4143.1,4143.0,1.05157555]
[1760316636317,4.36846,4143.1,4143.0,0.00217555]
[1760316636524,0.43403,4143.5,4143.0,0.29817555]
[1760316636919,3.54991028,4143.5,4143.1,0.7534]
[1760316637121,3.54991028,4143.5,4143.0,0.29817555]
[1760316637324,0.43403,4143.4,4143.0,0.73223555]
[1760316637522,3.20990491,4143.7,4143.5,0.296]
[1760316637721,3.20990491,4143.7,4143.6,0.7534]
[1760316638224,3.20990491,4143.7,4143.1,0.7534]
[1760316638418,0.43402,4143.5,4143.1,0.43405]
[1760316638729,0.43402,4143.5,4143.2,0.7534]
[1760316638930,0.43403,4143.4,4143.1,0.43405]
[1760316639126,0.43403,4143.4,4143.2,0.7534]
[1760316639524,0.43403,4143.4,4143.1,0.43405]
[1760316639730,3.20990491,4143.7,4143.0,0.29817555]
[1760316639731,1.81163,4143.6,4143.0,0.29817555]
[1760316639933,3.93650491,4143.7,4143.0,0.29817555]
[1760316640232,3.15163086,4143.6,4143.0,0.29817555]
[1760316640629,0.7266,4143.1,4143.0,0.00217555]
[1760316641130,3.18420497,4143.1,4143.0,0.75557555]
[1760316641833,3.64186,4143.2,4143.1,0.7534]
[1760316641834,0.43406,4143.2,4143.1,0.7534]
[1760316642230,0.43406,4143.2,4143.0,0.00217555]
[1760316642528,3.9270674,4143.1,4143.0,0.00217555]
[1760316643034,7.1348674,4143.1,4143.0,0.00217555]
[1760316643230,6.4082674,4143.1,4143.0,0.00217555]
[1760316643450,3.2078,4143.1,4143.0,1.05157555]
[1760316644932,3.2078,4143.1,4143.0,0.00217555]
[1760316645130,3.2078,4143.1,4143.0,0.75557555]
[1760316646437,7.10080878,4143.1,4143.0,0.00217555]
[1760316646735,6.37420878,4143.1,4143.0,0.75557555]
[1760316646941,0.43406,4143.2,4143.1,0.7534]
[1760316647236,0.43405,4143.3,4143.1,0.6919]
[1760316647433,3.2078,4143.6,4143.2,0.6919]
[1760316647628,0.00210491,4143.7,4143.5,0.2819]
[1760316647829,0.43610491,4143.7,4143.6,0.6919]
[1760316649431,0.00210491,4143.7,4143.6,1.12591]
[1760316649630,0.00210491,4143.7,4143.6,0.6919]
[1760316651037,0.00210491,4143.7,4143.0,0.29817555]
[1760316651038,0.43405,4143.2,4143.0,0.29817555]
[1760316651239,0.00210491,4143.7,4143.0,0.29817555]
[1760316651240,0.00210491,4143.7,4143.5,0.2819]
[1760316651536,3.2078,4144.8,4144.5,0.294]
[1760316651733,1.07545328,4144.7,4144.6,0.7196]
[1760316652344,0.64155328,4144.7,4144.6,0.7196]
[1760316652541,0.64460857,4144.7,4144.6,0.7196]
[1760316652734,0.00305529,4144.7,4144.6,0.7196]
[1760316653234,0.64667902,4144.7,4144.6,1.1535]
[1760316653435,0.00305529,4144.7,4144.6,1.1535]
[1760316653836,0.22,4145.3,4145.2,0.43384]
[1760316654037,2.00770772,4146.5,4146.0,0.294]
[1760316654038,0.43375,4146.1,4146.0,0.294]
[1760316654340,1.28893386,4146.3,4146.0,0.294]
[1760316654545,0.43375,4146.2,4146.1,0.7196]
[1760316654740,0.7434,4146.2,4145.6,0.7196]
[1760316655042,0.4338,4145.6,4145.5,1.0136]
[1760316655239,0.00257157,4146.2,4145.6,0.7196]
[1760316655439,0.00257157,4146.2,4146.1,0.7196]
[1760316655641,0.00257157,4146.2,4146.1,3.9274]
[1760316657039,0.00257157,4146.2,4146.1,0.7196]
[1760316657840,0.74597157,4146.2,4146.1,0.7196]
[1760316658247,0.4338,4145.6,4145.5,0.72243986]
[1760316658644,0.43379,4145.8,4145.6,0.7196]
[1760316658848,0.4338,4145.7,4145.6,0.7196]
[1760316659149,0.43377,4146.0,4145.7,0.7196]
[1760316659447,0.00257157,4146.2,4146.1,0.7196]
[1760316659744,3.2078,4147.0,4146.7,0.7196]
[1760316659940,0.43362,4147.4,4147.1,0.7196]
[1760316660146,3.64139,4147.6,4147.1,0.7196]
[1760316660447,3.64139,4147.6,4147.0,0.72765]
[1760316660448,3.2078,4147.6,4147.5,1.0136]
[1760316660741,0.85520386,4148.6,4147.5,1.0136]
[1760316660742,0.43349,4148.6,4148.1,0.7196]
[1760316660940,0.43648101,4148.6,4148.1,0.7196]
[1760316661137,0.00299101,4148.6,4148.1,0.7196]
[1760316661338,0.00299101,4148.6,4148.0,3.5018]
[1760316661339,0.43356,4147.9,4147.5,3.5018]
[1760316661639,0.43354,4148.1,4147.6,0.7196]
[1760316661837,0.74639101,4148.6,4147.6,0.7196]
[1760316662142,3.8247916,4148.5,4147.6,0.7196]
[1760316662342,0.43355,4148.0,4147.6,0.7196]
[1760316662642,0.43358,4147.7,4147.6,0.7196]
[1760316662857,3.2078,4148.1,4147.0,0.7196]
[1760316662858,0.43364,4147.1,4147.0,0.7196]
[1760316663036,0.43366,4146.9,4146.5,1.0136]
[1760316663237,0.43372,4146.4,4145.8,3.2078]
[1760316663442,0.4337,4146.6,4146.1,0.7196]
[1760316663642,1.51786,4146.8,4146.1,0.7196]
[1760316663949,3.10456509,4146.8,4146.1,0.7196]
[1760316664343,0.43374,4146.2,4146.1,0.7196]
[1760316665246,0.43374,4146.2,4145.5,0.00283986]
[1760316665247,0.4338,4145.6,4145.5,0.00283986]
[1760316665448,0.43670459,4145.6,4145.5,0.72243986]
[1760316665938,0.43670459,4145.6,4145.5,0.00283986]
[1760316665939,4.38790459,4145.6,4145.5,0.00283986]
[1760316666137,3.64450459,4145.6,4145.5,0.00283986]
[1760316666348,3.64450459,4145.6,4145.5,4.22423986]
[1760316666349,0.00290459,4145.6,4145.5,4.22423986]
[1760316666645,0.43371,4146.5,4145.5,4.22423986]